bitfinex-derivatives/quotes_ETHF0:USTF0_20250917
["timestamp","ask_amount","ask_price","bid_price","bid_amount"]
[1758133739584,3.2078,4496.7,4495.6,0.2852]
[1758133741782,0.263,4496.9,4495.9,3.2078]
[1758133741983,3.2078,4497.7,4495.9,3.60795]
[1758133742178,3.2078,4498.2,4497.1,3.2078]
[1758133743890,3.2078,4498.2,4497.1,3.4698]
[1758133744284,3.2078,4498.2,4496.5,3.2078]
[1758133744579,3.2078,4498.2,4496.6,0.262]
[1758133744782,3.2078,4498.2,4496.6,0.48435]
[1758133744982,3.2078,4498.2,4496.6,0.262]
[1758133745180,3.2078,4498.2,4496.7,0.22235]
[1758133745484,3.2078,4498.8,4497.2,3.2078]
[1758133745794,3.2078,4498.2,4497.3,0.262]
[1758133746389,3.2078,4498.2,4497.2,3.2078]
[1758133746788,0.262,4498.2,4497.2,3.2078]
[1758133747088,3.2078,4498.3,4497.2,3.2078]
[1758133748690,40.97991578,4500.2,4497.2,3.2078]
[1758133748893,3.2078,4498.3,4497.2,3.2078]
[1758133749490,3.2078,4498.3,4497.3,0.262]
[1758133750588,3.2078,4498.3,4497.4,0.1778]
[1758133750793,3.2078,4498.3,4495.6,0.0222]
[1758133750794,3.2078,4497.5,4495.6,0.0222]
[1758133750988,3.2078,4496.1,4495.6,0.0222]
[1758133751790,3.2078,4496.4,4495.6,0.0222]
[1758133752993,0.262,4496.6,4495.6,0.0222]
[1758133753898,0.262,4496.6,4495.7,0.1192]
[1758133754293,3.2078,4497.1,4495.7,0.1192]
[1758133755802,0.262,4497.0,4495.8,3.2078]
[1758133755989,3.2078,4497.1,4495.8,3.2078]
[1758133756503,3.2078,4497.6,4496.5,3.2078]
[1758133758195,3.2078,4498.1,4497.1,3.2078]
[1758133758592,3.2078,4498.1,4497.1,3.60784]
[1758133758997,3.2078,4498.1,4497.1,3.43013999]
[1758133759691,3.2078,4498.1,4497.1,3.2078]
[1758133763200,3.2078,4499.2,4497.6,3.2078]
[1758133763498,3.2078,4499.3,4498.2,3.2078]
[1758133763706,3.2078,4499.9,4498.3,0.262]
[1758133763898,3.2078,4499.9,4498.9,3.2078]
[1758133765300,3.4698,4499.9,4498.9,3.2078]
[1758133765495,3.2078,4499.9,4498.9,3.2078]
[1758133765800,0.262,4499.8,4498.9,3.2078]
[1758133766001,0.262,4499.8,4498.3,0.262]
[1758133766302,3.2078,4499.9,4498.2,3.4698]
[1758133766498,0.262,4499.8,4498.2,3.4698]
[1758133766900,3.2078,4499.9,4498.2,3.4698]
[1758133767099,0.262,4499.8,4498.2,3.4698]
[1758133767299,3.2078,4499.9,4498.2,3.4698]
[1758133767604,0.261,4499.8,4498.2,3.4698]
[1758133767803,0.261,4499.7,4498.2,3.4698]
[1758133768304,0.261,4499.6,4498.2,3.4698]
[1758133768607,3.2078,4499.3,4498.2,3.2078]
[1758133769203,3.43008,4499.3,4498.2,3.2078]
[1758133769399,0.261,4499.2,4498.2,3.2078]
[1758133770200,0.261,4499.1,4497.3,3.2078]
[1758133770402,3.2078,4498.8,4497.3,3.4688]
[1758133770796,0.261,4498.7,4497.3,3.4688]
[1758133771000,3.2078,4498.8,4497.9,3.2078]
[1758133772104,3.2078,4499.5,4497.9,3.4688]
[1758133772299,3.4688,4499.5,4497.9,3.4688]
[1758133772697,3.2078,4498.9,4497.9,3.2078]
[1758133772903,3.2078,4498.9,4497.2,0.0222]
[1758133772904,0.261,4498.8,4497.3,3.4688]
[1758133773104,3.2078,4498.4,4497.3,3.4688]
[1758133773304,3.2078,4498.4,4497.3,3.2078]
[1758133775705,32.018,4501.3,4497.3,3.2078]
[1758133775706,3.4688,4499.1,4497.3,3.2078]
[1758133775903,3.2078,4499.1,4497.8,3.2078]
[1758133776097,3.2078,4499.1,4497.9,0.261]
[1758133776499,3.2078,4499.1,4498.0,0.1778]
[1758133777505,3.2078,4498.5,4498.0,0.1778]
[1758133778706,3.2078,4499.2,4498.0,0.1778]
[1758133780414,3.2078,4499.2,4498.1,0.0222]
[1758133784916,3.2078,4498.7,4498.1,0.0222]
[1758133786512,3.2078,4498.8,4498.1,0.0222]
[1758133786909,3.2078,4499.5,4498.1,0.0222]
[1758133788915,3.2078,4499.5,4498.6,3.2078]
[1758133790622,3.2078,4499.5,4498.1,3.23]
[1758133795229,3.2078,4499.5,4498.6,3.2078]
[1758133796025,3.2078,4500.1,4498.6,3.2078]
[1758133796630,3.2078,4500.1,4498.7,0.1778]
[1758133797726,3.2078,4500.1,4499.2,3.2078]
[1758133798728,3.2078,4500.1,4498.7,3.3856]
[1758133800032,0.22225,4500.0,4498.8,0.0222]
[1758133800536,3.2078,4500.1,4499.2,3.2078]
[1758133801635,3.2078,4500.1,4498.8,0.0222]
[1758133801822,0.22225,4500.0,4498.8,0.0222]
[1758133802227,3.2078,4500.1,4498.8,0.0222]
[1758133802429,3.2078,4499.6,4498.8,0.0222]
[1758133803534,3.2078,4499.0,4498.8,0.0222]
[1758133804331,3.2078,4499.5,4498.8,0.0222]
[1758133804636,3.2078,4500.0,4498.8,0.0222]
[1758133804831,3.2078,4500.5,4499.0,3.2078]
[1758133805033,3.2078,4499.8,4499.0,3.2078]
[1758133805230,3.2078,4500.3,4499.0,3.2078]
[1758133805427,3.2078,4500.3,4498.8,0.0222]
[1758133805428,3.2078,4499.7,4498.8,0.0222]
[1758133805634,3.2078,4500.4,4499.4,3.2078]
[1758133805834,3.2078,4501.0,4499.4,3.2078]
[1758133806126,3.2078,4501.0,4499.5,3.2078]
[1758133806333,3.2078,4499.6,4498.8,0.0222]
[1758133806531,3.2078,4500.3,4498.9,3.2078]
[1758133806732,3.2078,4499.8,4498.8,0.0222]
[1758133806930,3.2078,4499.7,4498.8,0.0222]
[1758133807130,3.2078,4499.1,4498.8,0.0222]
[1758133807538,40.8,4501.8,4498.8,0.0222]
[1758133807539,3.2078,4499.6,4498.8,0.0222]
[1758133807833,3.2078,4499.1,4498.8,0.0222]
[1758133808738,4.0,4499.0,4498.8,0.0222]
[1758133808934,3.2078,4499.1,4498.8,0.0222]
[1758133809138,3.2078,4499.6,4498.9,3.2078]
[1758133809339,3.2078,4500.1,4498.9,3.2078]
[1758133810030,3.2078,4500.6,4499.5,3.2078]
[1758133810234,3.2078,4501.1,4500.1,3.2078]
[1758133810536,3.2078,4501.1,4499.6,3.2078]
[1758133811536,3.2078,4500.6,4499.1,3.2078]
[1758133811736,3.2078,4500.6,4499.6,3.2078]
[1758133811935,3.2078,4499.7,4496.2,3.2078]
[1758133812135,3.2078,4497.4,4496.0,3.2078]
[1758133812543,3.2078,4496.8,4496.0,3.2078]
[1758133812933,3.2078,4496.8,4495.5,3.2078]
[1758133813140,3.2078,4496.3,4495.3,0.44490418]
[1758133813336,3.2078,4495.8,4495.3,0.44490418]
[1758133814641,4.0,4495.7,4492.9,0.18096299]
[1758133814942,3.2078,4493.8,4492.2,3.2078]
[1758133815141,3.2078,4492.8,4491.8,3.2078]
[1758133815348,40.8,4495.6,4492.5,3.2078]
[1758133815349,3.2078,4493.3,4492.5,3.2078]
[1758133816145,3.2078,4494.0,4492.5,3.2078]
[1758133817049,3.2078,4493.5,4492.5,3.2078]
[1758133817452,3.2078,4493.0,4491.9,0.019]
[1758133817747,3.2078,4492.0,4491.9,0.019]
[1758133818140,7.2078,4492.0,4489.1,3.23007643]
[1758133818345,3.2078,4489.7,4489.1,0.02227643]
[1758133818949,3.2078,4490.7,4489.2,7.2078]
[1758133819147,3.2078,4490.7,4489.7,3.2078]
[1758133820048,3.2078,4492.5,4490.6,0.40062]
[1758133820245,3.2078,4491.7,4490.3,3.2078]
[1758133820443,3.2078,4491.2,4490.3,3.2078]
[1758133820951,3.2078,4492.4,4490.8,3.2078]
[1758133821549,3.2078,4492.4,4491.6,3.2078]
[1758133822053,3.2078,4492.9,4491.7,4.0]
[1758133822254,3.2078,4493.6,4492.3,3.2078]
[1758133822447,3.2078,4493.1,4492.3,3.2078]
[1758133822749,3.2078,4493.1,4491.8,3.2078]
[1758133822950,3.2078,4493.1,4492.4,3.2078]
[1758133823148,3.2078,4494.1,4493.0,3.2078]
[1758133823460,3.2078,4494.1,4491.0,0.17525926]
[1758133823461,2.9078,4494.1,4492.5,3.2078]
[1758133823749,2.9078,4494.1,4493.0,3.2078]
[1758133824340,3.2078,4493.5,4492.5,3.2078]
[1758133825344,3.2078,4492.9,4492.0,3.2078]
[1758133826154,3.2078,4493.4,4492.5,3.2078]
[1758133826345,3.2078,4493.9,4492.5,3.2078]
[1758133826650,3.2078,4493.2,4492.0,3.2078]
[1758133827048,3.2078,4493.7,4492.5,3.2078]
[1758133827247,3.2078,4494.2,4493.2,3.2078]
[1758133827446,3.2078,4495.0,4493.8,3.2078]
[1758133827643,3.2078,4495.0,4493.3,3.2078]
[1758133827845,3.2078,4494.5,4492.8,3.2078]
[1758133828050,3.2078,4494.0,4492.8,3.2078]
[1758133828543,3.2078,4493.4,4492.1,3.2078]
[1758133828746,0.22254001,4496.0,4492.1,3.2078]
[1758133828945,3.2078,4494.0,4492.6,3.2078]
[1758133829152,3.2078,4493.5,4492.1,3.2078]
[1758133829353,3.2078,4493.5,4492.6,3.2078]
[1758133829548,3.2078,4493.5,4492.1,3.2078]
[1758133830049,3.2078,4493.5,4492.6,3.2078]
[1758133830443,3.2078,4493.5,4492.6,7.2078]
[1758133830654,3.2078,4494.3,4493.3,3.2078]
[1758133830955,3.2078,4494.8,4493.3,3.2078]
[1758133831351,3.2078,4494.8,4493.4,3.2078]
[1758133832749,3.2078,4494.2,4493.4,3.2078]
[1758133832954,3.2078,4493.6,4492.0,3.2078]
[1758133833149,3.2078,4493.0,4492.0,3.2078]
[1758133834155,3.2078,4493.5,4492.5,3.2078]
[1758133834454,3.2078,4493.5,4491.9,3.2078]
[1758133834956,3.2078,4493.5,4492.1,3.2078]
[1758133835149,3.2078,4493.5,4492.6,3.2078]
[1758133835344,3.2078,4493.5,4492.1,3.2078]
[1758133835857,3.2078,4493.0,4492.1,3.2078]
[1758133836257,3.2078,4492.5,4491.6,3.2078]
[1758133837159,3.2078,4493.1,4492.1,3.2078]
[1758133837454,3.2078,4493.1,4491.6,3.60833]
[1758133837756,3.2078,4493.1,4491.6,3.2078]
[1758133838154,3.2078,4492.6,4491.6,3.2078]
[1758133839556,3.2078,4493.2,4492.2,3.2078]
[1758133840358,3.2078,4492.7,4491.7,3.2078]
[1758133840759,3.2078,4492.2,4491.2,3.2078]
[1758133840958,3.2078,4491.6,4490.9,0.0072]
[1758133841551,3.2078,4492.2,4491.2,3.2078]
[1758133842157,3.2078,4492.2,4490.9,0.0072]
[1758133842457,3.2078,4491.6,4490.9,0.0072]
[1758133842660,3.2078,4491.6,4490.2,3.2078]
[1758133843063,3.2078,4492.1,4490.7,3.2078]
[1758133843259,3.2078,4492.1,4491.2,3.2078]
[1758133843662,3.2078,4491.4,4490.5,3.2078]
[1758133843855,0.0971526,4491.7,4489.9,3.2078]
[1758133843856,3.2078,4491.3,4489.9,3.2078]
[1758133844054,0.0971526,4491.7,4490.4,3.2078]
[1758133844258,1.26694152,4491.1,4490.7,3.2078]
[1758133844564,1.26694152,4491.1,4490.2,3.2078]
[1758133844758,0.0971526,4490.7,4490.2,3.2078]
[1758133845063,0.0971526,4490.7,4490.3,0.0222]
[1758133845465,1.26694152,4490.5,4490.3,0.0222]
[1758133845665,4.0971526,4490.4,4490.0,0.1781]
[1758133845872,4.0971526,4490.4,4486.6,2.224]
[1758133845873,3.2078,4490.1,4486.2,3.2078]
[1758133846067,3.2078,4490.1,4485.3,0.44589608]
[1758133846068,3.2078,4487.3,4485.3,0.44589608]
[1758133846261,3.2078,4486.3,4485.3,0.44589608]
[1758133846461,40.8,4489.4,4485.3,0.44589608]
[1758133846462,1.26694152,4485.8,4485.3,3.65369608]
[1758133846661,1.26694152,4485.8,4485.3,4.05479608]
[1758133846863,0.0971526,4485.6,4485.3,3.65369608]
[1758133847065,0.0971526,4485.6,4485.3,0.44589608]
[1758133847562,1.26694152,4485.5,4485.3,0.44589608]
[1758133847764,0.0971526,4485.4,4485.3,0.44589608]
[1758133848358,1.36409412,4485.4,4485.3,0.44589608]
[1758133849262,5.36409412,4485.4,4484.5,0.0222]
[1758133849463,3.2078,4484.6,4484.1,0.02230127]
[1758133849657,5.01129506,4484.6,4484.1,0.02230127]
[1758133849864,0.0971526,4484.4,4484.1,0.02230127]
[1758133850463,1.26694152,4484.3,4484.2,0.41579608]
[1758133850659,5.26694152,4484.3,4484.1,0.02230127]
[1758133850865,4.0971526,4484.2,4484.1,0.02230127]
[1758133851065,4.0971526,4484.2,4480.8,0.4015]
[1758133851265,4.0971526,4484.2,4481.3,0.43809735]
[1758133851266,3.2078,4482.0,4481.3,0.43809735]
[1758133851466,3.2078,4481.5,4481.3,0.43809735]
[1758133851662,3.2078,4481.5,4480.2,3.2078]
[1758133851862,3.2078,4481.5,4481.0,0.34094475]
[1758133852062,3.2078,4481.5,4480.6,0.34094475]
[1758133852263,3.2078,4480.7,4479.0,3.2078]
[1758133852464,3.2078,4480.0,4479.9,0.34094475]
[1758133852768,0.92599677,4479.9,4478.9,3.2078]
[1758133852968,3.2078,4481.2,4479.7,3.2078]
[1758133853170,3.2078,4480.3,4479.7,3.60939]
[1758133853366,40.8,4483.5,4480.2,3.2078]
[1758133853367,3.2078,4481.5,4480.2,3.2078]
[1758133853571,3.2078,4481.5,4480.7,3.2078]
[1758133853773,3.2078,4482.0,4480.7,3.2078]
[1758133854068,3.2078,4481.4,4479.9,3.2078]
[1758133854267,3.2078,4480.1,4478.8,3.2078]
[1758133854473,3.2078,4479.6,4478.4,3.2078]
[1758133854773,3.2078,4481.3,4479.8,0.40159]
[1758133854972,3.2078,4481.3,4479.5,3.2078]
[1758133855162,3.2078,4481.8,4480.5,3.2078]
[1758133855473,32.097,4483.5,4481.6,3.2078]
[1758133855474,3.2078,4483.0,4481.6,3.2078]
[1758133856063,3.2078,4482.5,4480.9,3.2078]
[1758133856263,3.2078,4482.0,4480.9,3.2078]
[1758133856469,3.2078,4481.5,4480.9,3.2078]
[1758133856670,3.2078,4482.8,4481.4,3.2078]
[1758133856865,3.2078,4482.8,4482.0,3.2078]
[1758133857076,32.097,4483.5,4482.0,3.2078]
[1758133857275,3.2078,4483.6,4480.6,11.04174]
[1758133857276,3.2078,4484.3,4483.1,3.2078]
[1758133857573,3.2078,4484.8,4483.6,3.2078]
[1758133858073,3.2078,4484.3,4483.4,3.2078]
[1758133858273,3.2078,4485.0,4483.9,3.2078]
[1758133858774,3.2078,4485.0,4483.9,3.60902]
[1758133858971,3.2078,4485.7,4483.9,3.2078]
[1758133859172,3.2078,4486.8,4485.5,0.40108]
[1758133859377,3.2078,4486.8,4485.8,3.2078]
[1758133859569,0.26,4486.7,4485.8,3.2078]
[1758133859770,0.26,4486.7,4484.9,3.2078]
[1758133859771,3.2078,4486.2,4484.9,3.2078]
[1758133859971,0.26,4486.2,4484.8,0.26]
[1758133860274,3.2078,4486.6,4485.7,3.2078]
[1758133860483,3.2078,4487.1,4485.9,3.2078]
[1758133860775,3.4678,4487.1,4485.9,3.2078]
[1758133861077,3.2078,4487.1,4485.9,3.2078]
[1758133862373,0.26,4487.0,4485.9,3.2078]
[1758133862577,0.26,4486.9,4485.9,3.2078]
[1758133862975,3.2078,4486.4,4484.1,3.2078]
[1758133863174,3.2078,4484.5,4483.6,3.2078]
[1758133863374,0.26,4484.4,4483.6,3.2078]
[1758133863676,0.26,4484.4,4482.8,3.2078]
[1758133863877,3.2078,4484.5,4483.3,3.2078]
[1758133864077,0.26,4484.4,4483.3,3.2078]
[1758133864278,3.2078,4485.2,4484.0,3.2078]
[1758133864574,0.26,4485.1,4483.5,3.2078]
[1758133864775,3.2078,4484.1,4482.8,3.2078]
[1758133865083,3.2078,4485.0,4483.6,3.60905]
[1758133865280,3.2078,4485.0,4483.8,3.2078]
[1758133865586,0.26,4484.9,4483.8,3.2078]
[1758133866083,3.2078,4485.2,4483.8,3.2078]
[1758133866388,3.2078,4485.2,4484.0,0.40121]
[1758133866574,3.2078,4485.2,4483.8,3.2078]
[1758133866775,3.2078,4485.9,4484.9,3.2078]
[1758133867182,3.2078,4485.4,4484.5,0.26]
[1758133867378,3.2078,4484.9,4483.9,0.0058]
[1758133867577,3.2078,4484.1,4483.9,0.0058]
[1758133867884,0.26,4484.0,4483.9,0.0058]
[1758133868084,3.2078,4484.1,4483.9,0.0058]
[1758133868277,0.26,4484.0,4483.9,0.0058]
[1758133868882,3.2078,4484.1,4483.9,0.0058]
[1758133869380,0.26,4484.7,4483.9,0.0058]
[1758133869579,0.26,4484.6,4483.5,3.2078]
[1758133869776,3.2078,4484.3,4483.5,3.2078]
[1758133869989,3.2078,4484.8,4482.8,3.2078]
[1758133870284,0.26,4484.7,4483.4,3.2078]
[1758133870685,3.2078,4484.3,4482.9,3.2078]
[1758133870878,3.2078,4485.3,4483.5,3.2078]
[1758133871276,3.2078,4485.3,4483.5,3.60906]
[1758133871581,3.2078,4484.8,4483.5,3.60906]
[1758133871786,3.2078,4485.3,4483.5,4.21096]
[1758133871986,0.26,4485.2,4484.3,3.2078]
[1758133872284,0.26,4485.2,4483.5,3.4678]
[1758133872589,3.2078,4484.8,4483.5,3.4678]
[1758133872792,32.109,4486.1,4484.0,3.60902]
[1758133872793,3.2078,4485.3,4484.0,3.60902]
[1758133872982,0.26,4485.2,4484.0,3.2078]
[1758133873183,3.2078,4485.3,4484.0,3.2078]
[1758133873379,3.2078,4485.8,4484.6,3.2078]
[1758133873685,3.2078,4485.8,4484.8,0.40114]
[1758133873889,3.2078,4485.8,4484.6,3.2078]
[1758133874080,3.2078,4486.1,4485.1,3.2078]
[1758133874287,3.2078,4486.1,4485.6,0.40108]
[1758133874485,3.2078,4487.4,4485.8,3.2078]
[1758133874784,3.2078,4487.4,4486.4,3.2078]
[1758133875486,0.26,4487.3,4486.5,0.40099]
[1758133875684,0.26,4487.3,4486.4,3.2078]
[1758133875880,3.2078,4486.9,4485.0,3.2078]
[1758133876086,3.2078,4486.4,4485.0,3.2078]
[1758133876281,0.26,4486.3,4485.0,3.60893]
[1758133876481,3.4418,4487.1,4486.1,3.2078]
[1758133876688,3.2078,4487.6,4486.1,3.2078]
[1758133876886,0.26,4487.5,4486.2,0.40102]
[1758133877081,3.2078,4487.6,4486.2,0.40102]
[1758133877290,3.2078,4487.6,4486.1,3.2078]
[1758133877291,3.2078,4488.1,4486.7,3.2078]
[1758133877479,3.2078,4488.1,4487.2,3.2078]
[1758133877681,3.2078,4488.1,4485.5,10.0272]
[1758133877682,0.26,4488.6,4487.7,3.2078]
[1758133877879,3.2078,4488.8,4487.3,0.40092]
[1758133878184,3.2078,4490.7,4489.7,0.40071]
[1758133878488,32.108,4493.1,4489.6,3.2078]
[1758133878489,3.2078,4491.1,4489.6,3.2078]
[1758133878790,3.2078,4491.6,4490.2,3.2078]
[1758133878988,3.4678,4491.6,4490.2,3.2078]
[1758133879193,3.4678,4491.6,4489.6,3.2078]
[1758133879194,3.2078,4491.0,4489.6,3.2078]
[1758133879394,3.2078,4490.3,4489.0,3.4678]
[1758133879690,3.2078,4490.3,4489.0,3.60857]
[1758133879994,3.2078,4490.3,4489.0,3.2078]
[1758133880292,3.2078,4489.8,4488.4,3.2078]
[1758133880488,3.4678,4489.8,4488.4,3.2078]
[1758133880791,3.2078,4489.8,4489.1,3.2078]
[1758133881388,3.2078,4489.9,4488.5,3.2078]
[1758133881785,3.2078,4489.9,4487.0,1.00239]
[1758133881786,3.2078,4488.9,4487.5,3.60871]
[1758133882084,3.2078,4488.9,4487.6,0.26]
[1758133882492,3.2078,4488.4,4487.6,0.26]
[1758133882685,3.2078,4487.9,4486.5,3.2078]
[1758133882984,3.2078,4488.5,4487.8,0.40088]
[1758133883190,200.604,4492.3,4487.8,0.40088]
[1758133883191,3.2078,4489.2,4487.8,0.40088]
[1758133883390,3.2078,4489.2,4487.9,0.40087]
[1758133883585,3.2078,4488.6,4487.2,3.2078]
[1758133883789,3.2078,4488.1,4487.2,3.2078]
[1758133883985,0.26,4488.0,4486.4,3.4678]
[1758133884186,0.26,4488.0,4486.5,0.401]
[1758133884387,0.26,4488.0,4486.4,3.4678]
[1758133884589,0.26,4487.9,4486.4,3.4678]
[1758133884788,0.26,4487.9,4486.4,3.2078]
[1758133884992,3.2078,4487.6,4485.8,3.2078]
[1758133885292,3.2078,4486.9,4485.8,3.2078]
[1758133885492,3.2078,4487.4,4485.8,3.2078]
[1758133885698,3.2078,4487.4,4486.3,3.2078]
[1758133885896,0.26,4487.3,4485.8,3.2078]
[1758133886095,3.2078,4486.9,4485.8,3.2078]
[1758133886298,3.2078,4486.4,4485.3,0.44589608]
[1758133886493,3.2078,4486.4,4484.9,0.0222]
[1758133886494,3.2078,4485.7,4484.9,0.0222]
[1758133886694,3.2078,4485.0,4484.9,0.0222]
[1758133886997,3.2078,4485.0,4482.0,0.18012873]
[1758133887189,7.3248157,4488.8,4481.0,3.2078]
[1758133887190,3.2078,4482.6,4481.0,3.2078]
[1758133887394,3.2078,4481.8,4480.0,3.2078]
[1758133887603,3.2078,4480.5,4478.5,0.03886]
[1758133887900,3.2078,4480.0,4478.7,0.26]
[1758133888195,3.2078,4480.3,4478.8,3.2108]
[1758133888394,3.2078,4481.4,4479.9,3.2078]
[1758133888593,0.262,4481.4,4480.6,3.2078]
[1758133888798,3.2078,4482.1,4480.6,3.2078]
[1758133888998,3.2078,4482.1,4481.3,3.2078]
[1758133889701,0.263,4483.0,4481.9,3.2078]
[1758133889903,3.2078,4483.1,4481.7,3.2078]
[1758133890201,3.2078,4483.1,4482.2,3.2078]
[1758133890400,72.902,4485.2,4482.9,3.2078]
[1758133890401,0.263,4483.2,4482.9,3.2078]
[1758133890610,3.2078,4484.1,4482.2,3.2078]
[1758133890905,3.2078,4484.1,4482.9,3.2078]
[1758133891211,0.263,4484.6,4483.4,3.2078]
[1758133891504,3.2078,4484.8,4483.4,3.2078]
[1758133891697,3.2078,4485.6,4484.0,3.2078]
[1758133891898,3.2078,4487.0,4484.9,3.2078]
[1758133892202,3.2078,4486.3,4485.4,3.2078]
[1758133892397,3.2078,4485.8,4484.3,0.263]
[1758133892698,0.263,4485.7,4484.5,3.2078]
[1758133892905,3.2078,4485.2,4484.3,3.2078]
[1758133893096,0.263,4485.7,4484.8,3.2078]
[1758133893097,3.2078,4485.7,4484.8,3.2078]
[1758133893298,0.263,4485.6,4484.3,3.2078]
[1758133893699,3.2078,4484.6,4483.2,3.2078]
[1758133893998,0.263,4485.6,4483.2,3.2078]
[1758133893999,3.2078,4484.5,4483.2,3.2078]
[1758133894210,3.2078,4483.4,4482.5,3.2078]
[1758133894395,0.263,4483.3,4482.5,3.2078]
[1758133894798,3.2078,4483.9,4482.5,3.2078]
[1758133895000,0.263,4483.8,4482.5,3.2078]
[1758133895400,3.2078,4483.3,4482.5,3.2078]
[1758133895603,0.263,4483.2,4482.5,3.2078]
[1758133896000,3.2078,4482.6,4481.8,0.0223]
[1758133896201,3.4708,4482.6,4481.8,0.0223]
[1758133896397,3.2078,4483.1,4482.0,3.2078]
[1758133896606,0.263,4483.0,4482.0,3.2078]
[1758133897006,0.263,4483.0,4481.8,0.0223]
[1758133897194,3.2078,4483.1,4482.1,3.2078]
[1758133897700,3.2078,4483.8,4482.1,3.2078]
[1758133897908,0.262,4483.7,4482.6,3.2078]
[1758133898206,0.262,4483.6,4482.1,3.2078]
[1758133899008,3.2078,4483.4,4482.1,3.2078]
[1758133899307,3.2078,4483.9,4482.6,3.2078]
[1758133899501,0.262,4483.8,4482.6,3.2078]
[1758133900107,0.262,4483.8,4481.8,0.0223]
[1758133900108,3.2078,4483.9,4482.1,3.2078]
[1758133900300,0.262,4483.7,4482.1,3.2078]
[1758133900903,3.2078,4483.9,4482.1,3.2078]
[1758133901202,0.262,4483.8,4482.6,3.2078]
[1758133901404,3.2078,4483.9,4482.1,3.2078]
[1758133901805,3.2078,4483.9,4481.8,0.50737]
[1758133901806,3.2078,4483.9,4482.7,3.2078]
[1758133902002,0.262,4483.8,4482.7,3.2078]
[1758133902205,3.2078,4483.9,4483.2,3.2078]
[1758133902401,0.262,4484.1,4483.2,3.2078]
[1758133903008,3.2078,4486.0,4483.8,3.2078]
[1758133903201,3.2078,4486.0,4484.7,3.2078]
[1758133903402,3.2078,4486.0,4484.2,3.2078]
[1758133903600,3.2078,4485.9,4484.3,3.2078]
[1758133904009,3.2078,4485.9,4484.8,3.2078]
[1758133904407,0.262,4486.0,4484.8,3.2078]
[1758133904604,3.2078,4485.9,4484.8,3.2078]
[1758133904799,0.262,4485.9,4484.8,3.2078]
[1758133905406,3.2078,4485.5,4484.3,3.2078]
[1758133905601,0.262,4485.9,4484.3,3.2078]
[1758133905810,3.2078,4485.0,4483.2,3.2078]
[1758133906107,3.2078,4484.5,4483.2,3.2078]
[1758133906509,0.262,4484.4,4483.2,3.2078]
[1758133906703,0.262,4484.4,4483.1,3.2078]
[1758133907410,3.2078,4484.5,4483.1,3.2078]
[1758133907611,3.2078,4483.9,4482.6,3.2078]
[1758133907814,0.17927583,4487.3,4482.6,3.2078]
[1758133907815,3.2078,4483.4,4482.6,3.2078]
[1758133908108,0.262,4483.3,4482.1,3.2078]
[1758133908317,0.262,4483.2,4482.1,3.2078]
[1758133908513,3.2078,4482.8,4482.1,3.2078]
[1758133908717,0.262,4483.2,4482.1,3.2078]
[1758133909119,3.2078,4482.8,4482.1,3.2078]
[1758133909415,0.262,4482.7,4482.1,3.2078]
[1758133909717,0.262,4482.7,4481.8,0.0223]
[1758133909911,3.2078,4482.8,4481.8,0.0223]
[1758133910118,0.262,4482.7,4481.8,0.0223]
[1758133910617,0.262,4482.6,4481.8,0.0223]
[1758133910817,3.2078,4482.3,4481.8,0.0223]
[1758133911414,4.22311,4482.2,4480.4,3.2078]
[1758133911612,3.2078,4481.1,4480.4,3.2078]
[1758133911921,3.2078,4480.5,4479.8,3.2078]
[1758133912124,3.2078,4480.0,4479.2,3.2078]
[1758133912420,3.2078,4480.0,4478.2,3.2078]
[1758133912824,0.262,4479.9,4478.2,3.2078]
[1758133913018,0.262,4479.9,4478.2,3.60954]
[1758133913212,0.262,4479.8,4478.2,3.2078]
[1758133913413,0.262,4479.7,4478.7,3.60949]
[1758133913620,0.262,4479.9,4479.3,3.2078]
[1758133913918,3.2078,4480.1,4479.3,3.2078]
[1758133914117,3.2078,4480.1,4478.7,3.2078]
[1758133914322,0.262,4480.0,4478.7,3.2078]
[1758133914622,3.2078,4480.1,4478.7,3.2078]
[1758133914823,0.262,4480.0,4478.7,3.2078]
[1758133915223,0.262,4480.0,4478.2,3.2078]
[1758133915524,3.2078,4478.8,4478.3,0.0223]
[1758133915724,3.2078,4479.4,4478.3,0.0223]
[1758133916025,0.261,4479.3,4478.3,0.0223]
[1758133916414,0.261,4479.2,4478.3,0.0223]
[1758133916619,3.2078,4479.4,4478.3,0.0223]
[1758133916814,0.261,4479.3,4478.3,0.0223]
[1758133917225,3.2078,4480.0,4478.8,3.2078]
[1758133917418,0.261,4479.9,4478.8,3.2078]
[1758133917619,0.261,4479.9,4478.3,3.63183]
[1758133917823,0.261,4479.9,4478.3,3.2301]
[1758133918023,0.261,4479.9,4478.8,3.2078]
[1758133918324,0.261,4479.8,4478.8,3.2078]
[1758133918624,0.261,4479.7,4479.0,0.40165]
[1758133918826,0.261,4479.9,4479.3,3.2078]
[1758133919520,0.261,4479.8,4479.3,3.2078]
[1758133919724,0.261,4479.8,4478.8,3.2078]
[1758133920219,3.2078,4480.0,4478.8,3.2078]
[1758133920425,3.2078,4480.6,4478.8,3.2078]
[1758133920726,32.121,4480.7,4478.9,3.2078]